[Event "*** Titled Tuesday Blitz"]
[Site "Chess.com"]
[Date "2018.01.02"]
[Round "7"]
[White "nickmatta"]
[Black "evgenysharapov"]
[Result "0-1"]
[WhiteElo "2219"]
[BlackElo "2375"]
[TimeControl "180+2"]
[EndTime "14:34:51 PST"]
[Termination "evgenysharapov won by resignation"]

1. d4 {[%clk 0:03:01.9]} 1... d5 {[%clk 0:03:00.3]} 2. c4 {[%clk 0:03:02.4]}
2... c6 {[%clk 0:03:00.7]} 3. Nf3 {[%clk 0:03:03.5]} 3... Nf6 {[%clk 0:03:01.3]}
4. Qc2 {[%clk 0:03:05]} 4... g6 {[%clk 0:03:01.3]} 5. Bf4 {[%clk 0:03:05.3]}
5... dxc4 {[%clk 0:02:56.8]} 6. Qxc4 {[%clk 0:03:01.1]} 6... Bg7 {[%clk
0:02:56.6]} 7. Nc3 {[%clk 0:03:00.5]} 7... Bf5 {[%clk 0:02:49.8]} 8. Ne5 {[%clk
0:02:39.4]} 8... O-O {[%clk 0:02:49.1]} 9. e3 {[%clk 0:02:40.2]} 9... Nbd7
{[%clk 0:02:48]} 10. Be2 {[%clk 0:02:40.5]} 10... Qb6 {[%clk 0:02:38.3]} 11. Qb3
{[%clk 0:02:20.9]} 11... Qxb3 {[%clk 0:02:32.3]} 12. axb3 {[%clk 0:02:22.8]}
12... Nxe5 {[%clk 0:02:32.1]} 13. Bxe5 {[%clk 0:02:23.8]} 13... Nd7 {[%clk
0:02:25.3]} 14. Bxg7 {[%clk 0:02:24.3]} 14... Kxg7 {[%clk 0:02:25.8]} 15. e4
{[%clk 0:02:18.5]} 15... Be6 {[%clk 0:02:23.9]} 16. b4 {[%clk 0:01:55.1]} 16...
Nb6 {[%clk 0:02:23.5]} 17. b5 {[%clk 0:01:38.4]} 17... Rfd8 {[%clk 0:02:22.4]}
18. bxc6 {[%clk 0:01:37.4]} 18... bxc6 {[%clk 0:02:21.8]} 19. Rd1 {[%clk
0:01:28.4]} 19... Rd7 {[%clk 0:02:21.2]} 20. Bf3 {[%clk 0:01:10.6]} 20... Rad8
{[%clk 0:02:20.8]} 21. Ne2 {[%clk 0:01:11.7]} 21... Bc4 {[%clk 0:02:18.2]} 22.
O-O {[%clk 0:01:01.4]} 22... Bxe2 {[%clk 0:02:18]} 23. Bxe2 {[%clk 0:01:03.3]}
23... Rxd4 {[%clk 0:02:18.8]} 24. Ra1 {[%clk 0:00:56.7]} 24... Rd2 {[%clk
0:01:54.5]} 25. Bf3 {[%clk 0:00:57.6]} 25... Rxb2 {[%clk 0:01:49.3]} 26. Rxa7
{[%clk 0:00:58.4]} 26... e5 {[%clk 0:01:49.5]} 27. Bg4 {[%clk 0:00:42.9]} 27...
h5 {[%clk 0:01:46.9]} 28. Be6 {[%clk 0:00:42.3]} 28... Rf8 {[%clk 0:01:43.3]}
29. Rc1 {[%clk 0:00:35.8]} 29... Nc8 {[%clk 0:01:16]} 30. Rc7 {[%clk 0:00:35.6]}
30... Nd6 {[%clk 0:01:12.7]} 31. f3 {[%clk 0:00:27.2]} 31... Nb5 {[%clk
0:01:11.7]} 32. Rb7 {[%clk 0:00:22.5]} 32... Rd2 {[%clk 0:01:01.4]} 33. Bh3
{[%clk 0:00:04.8]} 33... Nd4 {[%clk 0:00:59.7]} 34. Rc5 {[%clk 0:00:02.3]} 34...
Ra8 {[%clk 0:00:54.2]} 35. Rb1 {[%clk 0:00:02.1]} 35... Kf6 {[%clk 0:00:49.3]}
36. Rc3 {[%clk 0:00:02.6]} 36... Raa2 {[%clk 0:00:46.4]} 37. Rf1 {[%clk
0:00:02.1]} 37... Ne2+ {[%clk 0:00:46.7]} 38. Kh1 {[%clk 0:00:03.2]} 38... Nxc3
{[%clk 0:00:46.4]} 39. f4 {[%clk 0:00:05.1]} 39... exf4 {[%clk 0:00:45.5]} 40.
Rxf4+ {[%clk 0:00:07]} 40... Ke5 {[%clk 0:00:46.1]} 41. Rf1 {[%clk 0:00:08.6]}
41... Nxe4 {[%clk 0:00:44.7]} 42. g3 {[%clk 0:00:10.5]} 42... Nf2+ {[%clk
0:00:44.2]} 43. Kg1 {[%clk 0:00:12.4]} 43... Nxh3+ {[%clk 0:00:44.8]} 0-1

[Event "*** Titled Tuesday Blitz"]
[Site "Chess.com"]
[Date "2018.01.02"]
[Round "7"]
[White "aquiles88"]
[Black "Grebeniuk-S"]
[Result "1-0"]
[WhiteElo "2071"]
[BlackElo "2368"]
[TimeControl "180+2"]
[EndTime "14:34:58 PST"]
[Termination "aquiles88 won by resignation"]

1. g3 {[%clk 0:02:59]} 1... f5 {[%clk 0:03:00.8]} 2. Bg2 {[%clk 0:02:59.2]} 2...
Nf6 {[%clk 0:03:02.2]} 3. d4 {[%clk 0:03:00.4]} 3... g6 {[%clk 0:03:03.4]} 4.
Nf3 {[%clk 0:03:01.1]} 4... d6 {[%clk 0:03:04.7]} 5. b3 {[%clk 0:03:01.2]} 5...
Bg7 {[%clk 0:03:04.8]} 6. Bb2 {[%clk 0:03:02.1]} 6... c6 {[%clk 0:03:06]} 7. c4
{[%clk 0:03:01.2]} 7... a5 {[%clk 0:03:07]} 8. O-O {[%clk 0:03:00]} 8... O-O
{[%clk 0:03:07.9]} 9. Nbd2 {[%clk 0:02:58]} 9... a4 {[%clk 0:03:08.8]} 10. Qc2
{[%clk 0:02:56.5]} 10... Na6 {[%clk 0:03:07.9]} 11. Bc3 {[%clk 0:02:52.1]} 11...
Qb6 {[%clk 0:02:53.1]} 12. Rfe1 {[%clk 0:02:41.1]} 12... Nb4 {[%clk 0:02:52.7]}
13. Qb2 {[%clk 0:02:32.6]} 13... Ne4 {[%clk 0:02:36.2]} 14. Nxe4 {[%clk
0:02:29.6]} 14... fxe4 {[%clk 0:02:37]} 15. Ng5 {[%clk 0:02:22.1]} 15... d5
{[%clk 0:02:28]} 16. c5 {[%clk 0:02:16.9]} 16... Qb5 {[%clk 0:02:21.3]} 17. bxa4
{[%clk 0:02:00]} 17... Rxa4 {[%clk 0:02:21.7]} 18. a3 {[%clk 0:02:00.4]} 18...
Na6 {[%clk 0:02:13.4]} 19. Qxb5 {[%clk 0:01:58.7]} 19... cxb5 {[%clk 0:02:15.3]}
20. Reb1 {[%clk 0:01:58.6]} 20... Bd7 {[%clk 0:02:10]} 21. Bh3 {[%clk
0:01:59.1]} 21... Bxh3 {[%clk 0:02:02.5]} 22. Nxh3 {[%clk 0:01:59.3]} 22... Nc7
{[%clk 0:02:04.4]} 23. e3 {[%clk 0:01:53]} 23... Rfa8 {[%clk 0:02:02.3]} 24. Bb4
{[%clk 0:01:32.8]} 24... e5 {[%clk 0:01:53.1]} 25. dxe5 {[%clk 0:01:22.4]} 25...
Bxe5 {[%clk 0:01:55]} 26. Ra2 {[%clk 0:01:17.1]} 26... Kg7 {[%clk 0:01:46.5]}
27. Rd2 {[%clk 0:01:14.1]} 27... h6 {[%clk 0:01:39]} 28. Nf4 {[%clk 0:01:13.7]}
28... Bxf4 {[%clk 0:01:30.8]} 29. gxf4 {[%clk 0:01:13.3]} 29... Kf7 {[%clk
0:01:30.3]} 30. Bc3 {[%clk 0:01:08.9]} 30... Rxa3 {[%clk 0:00:52.6]} 31. Be5
{[%clk 0:01:08.6]} 31... Rc8 {[%clk 0:00:33.2]} 32. Bxc7 {[%clk 0:01:01.2]}
32... Rxc7 {[%clk 0:00:35.1]} 33. Rxd5 {[%clk 0:01:02.4]} 33... Ra5 {[%clk
0:00:31.2]} 34. Rb4 {[%clk 0:01:02.1]} 34... Re7 {[%clk 0:00:27.5]} 35. Rd6
{[%clk 0:00:56.7]} 35... Ra4 {[%clk 0:00:26.2]} 36. Rxb5 {[%clk 0:00:55.7]}
36... Rc4 {[%clk 0:00:27.5]} 37. Rdb6 {[%clk 0:00:55.5]} 37... g5 {[%clk
0:00:22.5]} 38. fxg5 {[%clk 0:00:55.5]} 38... hxg5 {[%clk 0:00:23.6]} 39. Rxb7
{[%clk 0:00:55]} 39... Rxb7 {[%clk 0:00:23.1]} 40. Rxb7+ {[%clk 0:00:55.7]}
40... Kf6 {[%clk 0:00:25]} 41. Rc7 {[%clk 0:00:54.5]} 41... Kf5 {[%clk
0:00:25.7]} 42. Kg2 {[%clk 0:00:53.2]} 42... Rc1 {[%clk 0:00:26]} 43. c6 {[%clk
0:00:53.1]} 43... Kg4 {[%clk 0:00:27.3]} 44. Rc8 {[%clk 0:00:51.6]} 44... Rc5
{[%clk 0:00:23.6]} 45. c7 {[%clk 0:00:50.6]} 45... Rc6 {[%clk 0:00:23.1]} 46.
h3+ {[%clk 0:00:50.7]} 46... Kh4 {[%clk 0:00:22.6]} 47. Rh8+ {[%clk 0:00:51]}
1-0

[Event "*** Titled Tuesday Blitz"]
[Site "Chess.com"]
[Date "2018.01.02"]
[Round "7"]
[White "jbj"]
[Black "DrZeiss"]
[Result "1-0"]
[WhiteElo "2293"]
[BlackElo "2171"]
[TimeControl "180+2"]
[EndTime "14:34:59 PST"]
[Termination "jbj won on time"]

1. e4 {[%clk 0:03:01.9]} 1... c5 {[%clk 0:03:00.2]} 2. d4 {[%clk 0:03:02.7]}
2... cxd4 {[%clk 0:03:00.2]} 3. c3 {[%clk 0:03:04.1]} 3... dxc3 {[%clk 0:03:01]}
4. Nxc3 {[%clk 0:03:06]} 4... Nc6 {[%clk 0:03:02]} 5. Nf3 {[%clk 0:03:07.5]}
5... d6 {[%clk 0:03:03]} 6. Bc4 {[%clk 0:03:08.7]} 6... e6 {[%clk 0:03:03.8]} 7.
O-O {[%clk 0:03:09.8]} 7... a6 {[%clk 0:03:04.8]} 8. Qe2 {[%clk 0:03:11]} 8...
b5 {[%clk 0:03:05.2]} 9. Bb3 {[%clk 0:03:11.6]} 9... Ra7 {[%clk 0:03:05.7]} 10.
Be3 {[%clk 0:03:10.5]} 10... Rd7 {[%clk 0:03:05.5]} 11. Ng5 {[%clk 0:03:11.2]}
11... Na5 {[%clk 0:02:54]} 12. Nxe6 {[%clk 0:02:57.6]} 12... fxe6 {[%clk
0:02:44.3]} 13. Bxe6 {[%clk 0:02:59.5]} 13... Re7 {[%clk 0:02:33.6]} 14. Bxc8
{[%clk 0:02:46]} 14... Qxc8 {[%clk 0:02:33.6]} 15. Nd5 {[%clk 0:02:29.4]} 15...
Rxe4 {[%clk 0:02:16.4]} 16. Rac1 {[%clk 0:02:23.8]} 16... Qf5 {[%clk 0:01:23]}
17. Nc7+ {[%clk 0:01:55.7]} 17... Kf7 {[%clk 0:01:21]} 18. Rfd1 {[%clk
0:01:25.2]} 18... Nf6 {[%clk 0:01:13.7]} 19. b3 {[%clk 0:00:59.7]} 19... Be7
{[%clk 0:00:55.9]} 20. Qd2 {[%clk 0:01:01]} 20... b4 {[%clk 0:00:36.9]} 21. Nxa6
{[%clk 0:01:01.2]} 21... Qb5 {[%clk 0:00:31.7]} 22. Nxb4 {[%clk 0:00:57.4]}
22... Qxb4 {[%clk 0:00:30.7]} 23. Qd3 {[%clk 0:00:51.8]} 23... Nb7 {[%clk
0:00:28.1]} 24. Rc7 {[%clk 0:00:52.3]} 24... Nc5 {[%clk 0:00:25.5]} 25. Qxd6
{[%clk 0:00:48.3]} 25... Rxe3 {[%clk 0:00:19.3]} 26. fxe3 {[%clk 0:00:47.3]}
26... Qe4 {[%clk 0:00:20.1]} 27. Qxc5 {[%clk 0:00:44.4]} 27... Re8 {[%clk
0:00:17.1]} 28. Qc4+ {[%clk 0:00:42.4]} 28... Kg6 {[%clk 0:00:15.3]} 29. Qxe4+
{[%clk 0:00:39]} 29... Nxe4 {[%clk 0:00:15.9]} 30. Rdd7 {[%clk 0:00:39.1]} 30...
Bf6 {[%clk 0:00:14.8]} 31. Kf1 {[%clk 0:00:39.2]} 31... Nc3 {[%clk 0:00:10.3]}
32. Rd3 {[%clk 0:00:26.8]} 32... Nxa2 {[%clk 0:00:09.8]} 33. Rc4 {[%clk
0:00:27.3]} 33... Rb8 {[%clk 0:00:05.4]} 34. Ke1 {[%clk 0:00:24]} 34... Nb4
{[%clk 0:00:06]} 35. Rd6 {[%clk 0:00:24.2]} 35... Na2 {[%clk 0:00:05.5]} 36. Ra6
{[%clk 0:00:23.1]} 36... Nb4 {[%clk 0:00:04.7]} 37. Ra4 {[%clk 0:00:22.7]} 37...
Nd3+ {[%clk 0:00:04.6]} 38. Ke2 {[%clk 0:00:23.8]} 38... Rxb3 {[%clk 0:00:04.6]}
39. Rc2 {[%clk 0:00:23.8]} 1-0

[Event "*** Titled Tuesday Blitz"]
[Site "Chess.com"]
[Date "2018.01.02"]
[Round "7"]
[White "tigra"]
[Black "GMHess"]
[Result "0-1"]
[WhiteElo "2684"]
[BlackElo "2634"]
[TimeControl "180+2"]
[EndTime "14:35:06 PST"]
[Termination "GMHess won by checkmate"]

1. e4 {[%clk 0:03:01.9]} 1... e5 {[%clk 0:03:00.3]} 2. Nf3 {[%clk 0:03:02.3]}
2... Nc6 {[%clk 0:03:01.6]} 3. Bc4 {[%clk 0:03:03.9]} 3... Bc5 {[%clk
0:03:02.2]} 4. c3 {[%clk 0:03:05.2]} 4... Nf6 {[%clk 0:03:03.4]} 5. d3 {[%clk
0:03:06.6]} 5... a6 {[%clk 0:03:04]} 6. a4 {[%clk 0:03:06.3]} 6... Ba7 {[%clk
0:03:04.2]} 7. a5 {[%clk 0:03:06]} 7... d6 {[%clk 0:03:04.6]} 8. Nbd2 {[%clk
0:03:05.5]} 8... O-O {[%clk 0:03:04.2]} 9. O-O {[%clk 0:03:04.8]} 9... Be6
{[%clk 0:02:51.2]} 10. Bxe6 {[%clk 0:03:05.3]} 10... fxe6 {[%clk 0:02:53.1]} 11.
Nc4 {[%clk 0:03:06.6]} 11... Qe8 {[%clk 0:02:46]} 12. Be3 {[%clk 0:03:06.5]}
12... Nh5 {[%clk 0:02:43]} 13. Bxa7 {[%clk 0:03:06.2]} 13... Rxa7 {[%clk
0:02:43.8]} 14. d4 {[%clk 0:03:05.4]} 14... exd4 {[%clk 0:02:42.8]} 15. cxd4
{[%clk 0:03:07.3]} 15... Nf4 {[%clk 0:02:41.2]} 16. g3 {[%clk 0:03:06.8]} 16...
Qg6 {[%clk 0:02:29.4]} 17. Re1 {[%clk 0:03:01.8]} 17... Rf7 {[%clk 0:01:31.1]}
18. Ra3 {[%clk 0:02:49.8]} 18... Ra8 {[%clk 0:01:29.3]} 19. Nh4 {[%clk
0:02:26.2]} 19... Qg5 {[%clk 0:01:12.6]} 20. Rf3 {[%clk 0:02:18.7]} 20... Raf8
{[%clk 0:01:09.2]} 21. Ree3 {[%clk 0:02:14.6]} 21... Qg4 {[%clk 0:00:58]} 22.
Qd2 {[%clk 0:01:49.6]} 22... g5 {[%clk 0:00:36.8]} 23. d5 {[%clk 0:00:45]} 23...
gxh4 {[%clk 0:00:27.8]} 24. Kh1 {[%clk 0:00:21.9]} 24... Nxd5 {[%clk 0:00:17.2]}
25. Rxf7 {[%clk 0:00:22.5]} 25... Rxf7 {[%clk 0:00:18.4]} 26. exd5 {[%clk
0:00:21]} 26... Qxc4 {[%clk 0:00:19.4]} 27. Rd3 {[%clk 0:00:21.6]} 27... Qe4+
{[%clk 0:00:14.9]} 28. Kg1 {[%clk 0:00:19.7]} 28... Ne5 {[%clk 0:00:13]} 29.
Qg5+ {[%clk 0:00:19.3]} 29... Qg6 {[%clk 0:00:14.1]} 30. Qxg6+ {[%clk
0:00:04.9]} 30... hxg6 {[%clk 0:00:16]} 31. Rd1 {[%clk 0:00:05.6]} 31... exd5
{[%clk 0:00:12.6]} 32. Rxd5 {[%clk 0:00:07.5]} 32... hxg3 {[%clk 0:00:13.2]} 33.
hxg3 {[%clk 0:00:08.4]} 33... Rf5 {[%clk 0:00:14.7]} 34. Kg2 {[%clk 0:00:08.1]}
34... Ng4 {[%clk 0:00:14.4]} 35. Rd4 {[%clk 0:00:07.8]} 35... Nxf2 {[%clk
0:00:11.6]} 36. Rb4 {[%clk 0:00:07.6]} 36... Rb5 {[%clk 0:00:11.9]} 37. Rc4
{[%clk 0:00:08.4]} 37... Rxb2 {[%clk 0:00:11.9]} 38. Rxc7 {[%clk 0:00:09.5]}
38... Ne4+ {[%clk 0:00:11.1]} 39. Kf3 {[%clk 0:00:10.6]} 39... Nf6 {[%clk
0:00:12.7]} 40. g4 {[%clk 0:00:09.3]} 40... Rb3+ {[%clk 0:00:13.8]} 41. Kf4
{[%clk 0:00:10.6]} 41... Nd5+ {[%clk 0:00:15]} 42. Kg5 {[%clk 0:00:11.9]} 42...
Nxc7 {[%clk 0:00:16.9]} 43. Kh6 {[%clk 0:00:13.1]} 43... d5 {[%clk 0:00:16]} 44.
g5 {[%clk 0:00:14.3]} 44... Kf7 {[%clk 0:00:16.9]} 45. Kh7 {[%clk 0:00:14.5]}
45... Rh3# {[%clk 0:00:18.4]} 0-1

[Event "*** Titled Tuesday Blitz"]
[Site "Chess.com"]
[Date "2018.01.02"]
[Round "7"]
[White "gmmoranda"]
[Black "Dr-Bassem"]
[Result "1-0"]
[WhiteElo "2741"]
[BlackElo "2640"]
[TimeControl "180+2"]
[EndTime "14:35:13 PST"]
[Termination "gmmoranda won on time"]

1. d4 {[%clk 0:03:01.9]} 1... Nf6 {[%clk 0:03:00.9]} 2. c4 {[%clk 0:03:03.1]}
2... g6 {[%clk 0:03:02.3]} 3. Nc3 {[%clk 0:03:03.9]} 3... Bg7 {[%clk 0:03:03.5]}
4. e4 {[%clk 0:03:05.1]} 4... d6 {[%clk 0:03:05.1]} 5. f4 {[%clk 0:03:06.4]}
5... O-O {[%clk 0:03:05.1]} 6. Nf3 {[%clk 0:03:07.7]} 6... c5 {[%clk 0:03:05.7]}
7. d5 {[%clk 0:03:09.1]} 7... e6 {[%clk 0:03:07]} 8. Be2 {[%clk 0:03:10.4]} 8...
exd5 {[%clk 0:03:08.1]} 9. cxd5 {[%clk 0:03:12.3]} 9... Nbd7 {[%clk 0:03:02.9]}
10. O-O {[%clk 0:03:11.2]} 10... Re8 {[%clk 0:03:04.2]} 11. Qc2 {[%clk 0:03:11]}
11... a6 {[%clk 0:02:04]} 12. a4 {[%clk 0:03:04]} 12... Rb8 {[%clk 0:02:04.2]}
13. Nd2 {[%clk 0:03:00.7]} 13... Qc7 {[%clk 0:01:02.3]} 14. Kh1 {[%clk
0:02:59.6]} 14... b6 {[%clk 0:00:57.6]} 15. Nc4 {[%clk 0:02:33.9]} 15... b5
{[%clk 0:00:54.8]} 16. axb5 {[%clk 0:02:35.2]} 16... axb5 {[%clk 0:00:56.5]} 17.
Nxd6 {[%clk 0:02:36.6]} 17... Qxd6 {[%clk 0:00:57.6]} 18. e5 {[%clk 0:02:38.1]}
18... Qb6 {[%clk 0:00:48.5]} 19. exf6 {[%clk 0:02:10.9]} 19... Nxf6 {[%clk
0:00:49.6]} 20. Bxb5 {[%clk 0:02:11.7]} 20... Bf5 {[%clk 0:00:50.2]} 21. Qa4
{[%clk 0:02:04.6]} 21... Red8 {[%clk 0:00:42.7]} 22. Bc4 {[%clk 0:01:55]} 22...
Qd6 {[%clk 0:00:30.7]} 23. Qc6 {[%clk 0:01:39.8]} 23... Qe7 {[%clk 0:00:28.6]}
24. Ra5 {[%clk 0:01:18.1]} 24... Rbc8 {[%clk 0:00:24.1]} 25. Qa6 {[%clk
0:01:13.2]} 25... Ng4 {[%clk 0:00:25]} 26. h3 {[%clk 0:01:09.1]} 26... Qh4
{[%clk 0:00:25.2]} 27. Ne2 {[%clk 0:00:50.8]} 27... Nf2+ {[%clk 0:00:20.7]} 28.
Kg1 {[%clk 0:00:50.7]} 28... Nxh3+ {[%clk 0:00:16.2]} 29. gxh3 {[%clk
0:00:51.4]} 29... Bxh3 {[%clk 0:00:17.2]} 30. Ra3 {[%clk 0:00:45.3]} 30... Bxf1
{[%clk 0:00:16.1]} 31. Kxf1 {[%clk 0:00:47.2]} 31... Qh1+ {[%clk 0:00:16.8]} 32.
Kf2 {[%clk 0:00:46.5]} 32... Re8 {[%clk 0:00:16.9]} 33. Be3 {[%clk 0:00:40.3]}
33... Bf6 {[%clk 0:00:14.3]} 34. Qxf6 {[%clk 0:00:38.4]} 34... Qh2+ {[%clk
0:00:06.6]} 35. Ke1 {[%clk 0:00:36.9]} 35... Qh1+ {[%clk 0:00:07.2]} 36. Kd2
{[%clk 0:00:37.8]} 36... Rb8 {[%clk 0:00:05.6]} 37. d6 {[%clk 0:00:36.4]} 37...
Rf8 {[%clk 0:00:07]} 38. d7 {[%clk 0:00:34]} 38... Qb1 {[%clk 0:00:07.5]} 39.
Rb3 {[%clk 0:00:33.4]} 39... Rbd8 {[%clk 0:00:07.1]} 40. Rb7 {[%clk 0:00:33.1]}
40... Qe4 {[%clk 0:00:07.9]} 41. Qa6 {[%clk 0:00:24.7]} 41... Rfe8 {[%clk
0:00:05.1]} 42. Bxc5 {[%clk 0:00:22.3]} 1-0

[Event "*** Titled Tuesday Blitz"]
[Site "Chess.com"]
[Date "2018.01.02"]
[Round "7"]
[White "ftorodent"]
[Black "jcibarra"]
[Result "1-0"]
[WhiteElo "2527"]
[BlackElo "2696"]
[TimeControl "180+2"]
[EndTime "14:35:20 PST"]
[Termination "ftorodent won on time"]

1. d4 {[%clk 0:03:01.9]} 1... Nf6 {[%clk 0:03:00.8]} 2. c4 {[%clk 0:03:02.6]}
2... d6 {[%clk 0:03:01.7]} 3. Nf3 {[%clk 0:03:02.6]} 3... g6 {[%clk 0:03:02.8]}
4. g3 {[%clk 0:03:03.1]} 4... Bg7 {[%clk 0:03:03.2]} 5. Bg2 {[%clk 0:03:04.5]}
5... O-O {[%clk 0:03:04.7]} 6. O-O {[%clk 0:03:05.9]} 6... Bf5 {[%clk
0:03:06.3]} 7. Nc3 {[%clk 0:02:52.8]} 7... Ne4 {[%clk 0:03:06.7]} 8. Bd2 {[%clk
0:02:53.9]} 8... Nxd2 {[%clk 0:03:05.2]} 9. Qxd2 {[%clk 0:02:54.6]} 9... Nc6
{[%clk 0:03:06.5]} 10. e3 {[%clk 0:02:49.2]} 10... Qd7 {[%clk 0:03:07]} 11. Rac1
{[%clk 0:02:40.6]} 11... Bh3 {[%clk 0:03:06.9]} 12. a3 {[%clk 0:02:39.1]} 12...
Bxg2 {[%clk 0:03:03.6]} 13. Kxg2 {[%clk 0:02:40.1]} 13... e6 {[%clk 0:02:55.9]}
14. e4 {[%clk 0:02:37.3]} 14... e5 {[%clk 0:02:48.7]} 15. d5 {[%clk 0:02:34.6]}
15... Ne7 {[%clk 0:02:44]} 16. Qe2 {[%clk 0:02:27]} 16... f5 {[%clk 0:02:43.3]}
17. b4 {[%clk 0:02:26]} 17... Bh6 {[%clk 0:02:35.7]} 18. Rcd1 {[%clk 0:02:24.7]}
18... f4 {[%clk 0:02:35.3]} 19. h3 {[%clk 0:02:23.1]} 19... g5 {[%clk
0:02:29.6]} 20. Nh2 {[%clk 0:02:18.6]} 20... Ng6 {[%clk 0:02:28.9]} 21. Qg4
{[%clk 0:02:15.4]} 21... Qg7 {[%clk 0:02:29.2]} 22. c5 {[%clk 0:02:11.7]} 22...
Kh8 {[%clk 0:02:29.2]} 23. cxd6 {[%clk 0:02:07.1]} 23... cxd6 {[%clk 0:02:30.4]}
24. Nb5 {[%clk 0:02:08]} 24... Rf6 {[%clk 0:02:29.1]} 25. Rc1 {[%clk 0:02:08.4]}
25... a6 {[%clk 0:02:05.5]} 26. Nc7 {[%clk 0:02:07.5]} 26... Rg8 {[%clk
0:01:56.4]} 27. Ne6 {[%clk 0:02:05.3]} 27... Qd7 {[%clk 0:01:56.8]} 28. Qh5
{[%clk 0:01:39]} 28... Rxe6 {[%clk 0:00:46]} 29. dxe6 {[%clk 0:01:39.1]} 29...
Qxe6 {[%clk 0:00:47.9]} 30. Ng4 {[%clk 0:01:36.1]} 30... Bf8 {[%clk 0:00:41.8]}
31. Rc7 {[%clk 0:01:33.7]} 31... Be7 {[%clk 0:00:40.6]} 32. Rxb7 {[%clk
0:01:27.2]} 32... Qc4 {[%clk 0:00:38.8]} 33. Nf6 {[%clk 0:01:24.2]} 33... Qf7
{[%clk 0:00:33.8]} 34. Rxe7 {[%clk 0:01:00.1]} 34... Qxe7 {[%clk 0:00:30.5]} 35.
Nxg8 {[%clk 0:01:00.4]} 35... Kxg8 {[%clk 0:00:26.9]} 36. Rc1 {[%clk 0:00:58.8]}
36... Kg7 {[%clk 0:00:24.4]} 37. Qg4 {[%clk 0:00:59.3]} 37... Qb7 {[%clk
0:00:19.1]} 38. Qf5 {[%clk 0:01:00.1]} 38... h6 {[%clk 0:00:17.3]} 39. Kh2
{[%clk 0:00:47.4]} 39... Qb6 {[%clk 0:00:13.4]} 40. Rc2 {[%clk 0:00:45.9]} 40...
Nf8 {[%clk 0:00:07.3]} 41. Qc8 {[%clk 0:00:41.9]} 41... Qd4 {[%clk 0:00:05.7]}
42. Qc7+ {[%clk 0:00:36.4]} 42... Kg8 {[%clk 0:00:06.3]} 43. Qc4+ {[%clk
0:00:37]} 43... Ne6 {[%clk 0:00:06.3]} 44. Qxe6+ {[%clk 0:00:37.2]} 1-0

[Event "*** Titled Tuesday Blitz"]
[Site "Chess.com"]
[Date "2018.01.02"]
[Round "7"]
[White "Andrejs_Sokolov"]
[Black "maciek_92"]
[Result "1-0"]
[WhiteElo "2623"]
[BlackElo "2546"]
[TimeControl "180+2"]
[EndTime "14:35:22 PST"]
[Termination "Andrejs_Sokolov won by checkmate"]

1. d4 {[%clk 0:03:00.5]} 1... Nf6 {[%clk 0:02:58.9]} 2. Nf3 {[%clk 0:03:01.8]}
2... e6 {[%clk 0:02:57.8]} 3. g3 {[%clk 0:03:02.6]} 3... b6 {[%clk 0:02:58.7]}
4. Bg2 {[%clk 0:03:03.9]} 4... Bb7 {[%clk 0:03:00.6]} 5. O-O {[%clk 0:03:05.2]}
5... Be7 {[%clk 0:02:59.5]} 6. c4 {[%clk 0:03:06]} 6... O-O {[%clk 0:03:00.8]}
7. Nc3 {[%clk 0:03:07.3]} 7... Ne4 {[%clk 0:03:00.8]} 8. Qc2 {[%clk 0:03:08.4]}
8... Nxc3 {[%clk 0:02:56.8]} 9. bxc3 {[%clk 0:03:09.8]} 9... d5 {[%clk 0:02:55]}
10. cxd5 {[%clk 0:02:57.9]} 10... exd5 {[%clk 0:02:56.9]} 11. c4 {[%clk
0:02:52.1]} 11... Nc6 {[%clk 0:02:53.9]} 12. cxd5 {[%clk 0:02:45]} 12... Qxd5
{[%clk 0:02:43.4]} 13. Rd1 {[%clk 0:02:17.6]} 13... Rad8 {[%clk 0:02:32.8]} 14.
Bf4 {[%clk 0:01:58.9]} 14... Ba8 {[%clk 0:02:13.4]} 15. Rac1 {[%clk 0:01:43.8]}
15... Bd6 {[%clk 0:02:00.1]} 16. e4 {[%clk 0:01:40]} 16... Qa5 {[%clk
0:01:56.4]} 17. e5 {[%clk 0:01:31.1]} 17... Ba3 {[%clk 0:01:56.1]} 18. Ng5
{[%clk 0:01:22.8]} 18... g6 {[%clk 0:01:57.6]} 19. Bxc6 {[%clk 0:01:22.5]} 19...
Bxc1 {[%clk 0:01:59.1]} 20. Bxc1 {[%clk 0:01:11.4]} 20... Bxc6 {[%clk
0:01:39.8]} 21. Qxc6 {[%clk 0:01:11.6]} 21... Qxa2 {[%clk 0:01:41.7]} 22. Ne4
{[%clk 0:01:06.1]} 22... Qe2 {[%clk 0:01:38.5]} 23. Nc3 {[%clk 0:00:28.9]} 23...
Qh5 {[%clk 0:01:28]} 24. Be3 {[%clk 0:00:21.4]} 24... a5 {[%clk 0:01:21.5]} 25.
Rd2 {[%clk 0:00:22.2]} 25... a4 {[%clk 0:01:17]} 26. Qxa4 {[%clk 0:00:21]} 26...
Ra8 {[%clk 0:01:13.7]} 27. Qc6 {[%clk 0:00:18.6]} 27... Qh3 {[%clk 0:01:13.5]}
28. Rd1 {[%clk 0:00:18.5]} 28... Qh5 {[%clk 0:01:05.2]} 29. Rf1 {[%clk
0:00:18.4]} 29... Qh3 {[%clk 0:00:49.7]} 30. Nd5 {[%clk 0:00:18.9]} 30... h5
{[%clk 0:00:44]} 31. Qxc7 {[%clk 0:00:17]} 31... Ra2 {[%clk 0:00:43.6]} 32. Qxb6
{[%clk 0:00:16.5]} 32... Rfa8 {[%clk 0:00:42.5]} 33. Nf4 {[%clk 0:00:16.9]}
33... Qf5 {[%clk 0:00:41.4]} 34. Qc6 {[%clk 0:00:14.8]} 34... R2a6 {[%clk
0:00:38.4]} 35. Qd5 {[%clk 0:00:14.4]} 35... h4 {[%clk 0:00:37.8]} 36. Kg2
{[%clk 0:00:14.5]} 36... g5 {[%clk 0:00:36.3]} 37. Nh5 {[%clk 0:00:13]} 37...
Ra1 {[%clk 0:00:31.4]} 38. Nf6+ {[%clk 0:00:12.8]} 38... Kh8 {[%clk 0:00:29.8]}
39. g4 {[%clk 0:00:12.7]} 39... h3+ {[%clk 0:00:12.3]} 40. Kxh3 {[%clk
0:00:10.4]} 40... Qg6 {[%clk 0:00:10.6]} 41. Rxa1 {[%clk 0:00:09.5]} 41... Rxa1
{[%clk 0:00:07.9]} 42. Qd8+ {[%clk 0:00:09.9]} 42... Kg7 {[%clk 0:00:09.1]} 43.
Qg8+ {[%clk 0:00:10.7]} 43... Kh6 {[%clk 0:00:11]} 44. Qh8+ {[%clk 0:00:11.4]}
44... Qh7 {[%clk 0:00:12.6]} 45. Qxh7# {[%clk 0:00:12.3]} 1-0